bitfinex/quotes_SOLUSD_20251106
["timestamp","ask_amount","ask_price","bid_price","bid_amount"]
[1762420862081,0.67,159.88,159.85,0.2]
[1762420862847,23.97905373,159.86,159.85,0.2]
[1762420863049,3.38705373,159.89,159.85,0.87]
[1762420863352,6.92400273,159.9,159.86,0.67]
[1762420864056,0.67,159.9,159.86,0.67]
[1762420864255,16.09731021,159.91,159.86,4.05705373]
[1762420864473,0.67,159.9,159.86,0.67]
[1762420865150,0.67,159.9,159.86,6.92531868]
[1762420865355,19.48436394,159.91,159.86,10.31237241]
[1762420865356,20.592,159.89,159.86,10.31237241]
[1762420865556,20.592,159.89,159.87,4.05705373]
[1762420865956,20.592,159.89,159.88,0.67]
[1762420867858,20.592,159.89,159.86,10.3124193]
[1762420868061,20.592,159.89,159.87,0.67]
[1762420870191,26.84630549,159.89,159.87,0.67]
[1762420870363,20.592,159.89,159.87,0.67]
[1762420871189,154.7,159.97,159.88,3.38705373]
[1762420871491,22.55047011,159.96,159.92,3.38705373]
[1762420871671,20.592,159.93,159.91,3.38705373]
[1762420871872,20.592,159.93,159.9,3.38705373]
[1762420872382,20.592,159.93,159.9,4.05705373]
[1762420872777,0.67,159.92,159.88,3.38705373]
[1762420873279,0.67,159.92,159.88,4.05705373]
[1762420873990,6.92341892,159.92,159.88,4.05705373]
[1762420874367,6.92341892,159.92,159.85,15.83902513]
[1762420874559,0.67,159.91,159.88,3.38705373]
[1762420875184,0.67,159.91,159.87,3.38705373]
[1762420875898,6.92366378,159.91,159.87,3.38705373]
[1762420876262,4.05705373,159.9,159.85,9.84282955]
[1762420876775,0.67,159.89,159.85,9.84282955]
[1762420877287,0.67,159.89,159.85,10.51282955]
[1762420877860,6.92441153,159.89,159.85,0.87]
[1762420878199,6.92441153,159.89,159.85,0.2]
[1762420878360,0.67,159.88,159.85,0.2]
[1762420878565,0.67,159.89,159.85,7.12585239]
[1762420879191,0.67,159.89,159.85,0.2]
[1762420879192,4.05705373,159.89,159.85,0.2]
[1762420879658,6.92469101,159.88,159.85,0.2]
[1762420882507,6.25469101,159.88,159.85,0.2]
[1762420882683,0.68,159.87,159.85,0.2]
[1762420883085,10.32227775,159.87,159.85,0.2]
[1762420883596,0.68,159.86,159.85,0.2]
[1762420883766,13.85588142,159.86,159.85,0.2]
[1762420883970,50.0,159.85,159.83,0.2]
[1762420884272,3.38705373,159.84,159.83,0.2]
[1762420884501,14.63791345,159.84,159.83,0.2]
[1762420884684,24.98122343,159.84,159.83,0.2]
[1762420885874,24.1991914,159.84,159.83,0.2]
[1762420886993,20.11213767,159.84,159.83,0.2]
[1762420887378,10.32330998,159.84,159.83,0.2]
[1762420891167,20.592,159.84,159.83,0.2]
[1762420891908,0.68,159.92,159.83,10.54370141]
[1762420892081,0.68,159.93,159.88,3.38705373]
[1762420892287,0.68,159.93,159.89,0.7]
[1762420892507,0.68,159.93,159.89,4.08705373]
[1762420892686,6.25198804,159.95,159.9,3.38705373]
[1762420892998,30.91104177,159.95,159.9,4.08705373]
[1762420893196,30.91104177,159.95,159.9,10.34080395]
[1762420893197,0.68,159.94,159.9,10.34080395]
[1762420893700,6.93239336,159.94,159.9,4.08705373]
[1762420894000,6.93239336,159.94,159.9,0.7]
[1762420894802,6.93239336,159.94,159.9,6.95385335]
[1762420895482,0.68,159.94,159.9,10.34090708]
[1762420895987,21.272,159.95,159.9,10.34090708]
[1762420896293,20.592,159.95,159.9,10.34090708]
[1762420896486,0.68,159.94,159.9,9.64090708]
[1762420896694,0.68,159.94,159.91,0.7]
[1762420898607,6.93242257,159.94,159.89,0.68]
[1762420898787,10.3194763,159.94,159.89,3.38705373]
[1762420898984,0.65,159.93,159.89,4.06705373]
[1762420899502,0.65,159.93,159.89,10.32103223]
[1762420901409,0.65,159.93,159.89,9.64103223]
[1762420901706,0.65,159.93,159.9,0.68]
[1762420902102,0.65,159.93,159.89,9.64103223]
[1762420902292,0.65,159.93,159.89,10.32103223]
[1762420903413,0.65,159.93,159.89,6.9339785]
[1762420904599,10.28983362,159.93,159.89,0.68]
[1762420904996,0.65,159.92,159.84,20.592]
[1762420905207,0.65,159.92,159.84,3.38705373]
[1762420905208,23.97905373,159.89,159.84,3.38705373]
[1762420905518,3.38705373,159.88,159.84,0.68]
[1762420906009,0.65,159.88,159.84,4.06705373]
[1762420906308,6.904797,159.88,159.84,6.93603779]
[1762420906613,4.03705373,159.87,159.83,0.2]
[1762420906914,4.03705373,159.86,159.83,6.45635677]
[1762420907092,4.03705373,159.86,159.83,0.2]
[1762420907290,0.65,159.85,159.83,0.2]
[1762420907517,4.03705373,159.85,159.83,0.2]
[1762420907809,24.62905373,159.85,159.83,0.2]
[1762420907998,0.65,159.84,159.83,0.2]
[1762420908197,4.03705373,159.84,159.83,0.2]
[1762420909810,10.29330998,159.84,159.83,0.2]
[1762420910611,4.03705373,159.84,159.83,0.2]
[1762420912915,20.592,159.84,159.83,0.2]
[1762420913100,108.08705373,159.9,159.83,10.53370141]
[1762420913301,4.07705373,159.9,159.84,3.38705373]
[1762420913503,4.07705373,159.9,159.84,4.07705373]
[1762420913707,9.64058796,159.91,159.85,4.07705373]
[1762420913900,20.592,159.88,159.85,4.07705373]
[1762420914101,4.07705373,159.9,159.85,4.07705373]
[1762420914512,20.592,159.88,159.86,0.69]
[1762420915133,0.69,159.92,159.87,3.38705373]
[1762420915323,0.69,159.92,159.88,3.38705373]
[1762420915701,10.32951315,159.94,159.89,0.69]
[1762420915904,20.592,159.91,159.89,4.07705373]
[1762420916106,10.32951315,159.94,159.89,4.07705373]
[1762420916332,8.41905833,159.94,159.89,0.69]
[1762420916503,20.592,159.91,159.89,0.69]
[1762420916703,20.592,159.91,159.89,2.85659891]
[1762420917318,0.69,159.93,159.87,8.42163827]
[1762420917319,0.69,159.9,159.87,8.42163827]
[1762420917522,26.84521668,159.92,159.87,8.42163827]
[1762420917523,27.53521668,159.92,159.87,9.11163827]
[1762420917723,27.53521668,159.92,159.88,0.69]
[1762420918030,26.84521668,159.92,159.83,0.2]
[1762420918329,26.84521668,159.92,159.83,3.05659891]
[1762420918330,2.16659891,159.89,159.83,3.05659891]
[1762420918529,22.75859891,159.89,159.83,3.05659891]
[1762420918836,23.44859891,159.89,159.83,3.05659891]
[1762420919007,29.70320095,159.89,159.84,8.42270491]
[1762420919211,29.70320095,159.89,159.84,9.11270491]
[1762420919408,27.53660204,159.89,159.85,0.69]
[1762420919607,26.84660204,159.89,159.85,0.69]
[1762420919927,0.69,159.88,159.85,0.69]
[1762420920227,0.69,159.88,159.84,2.85659891]
[1762420920932,0.69,159.88,159.85,2.16659891]
[1762420921134,6.94474183,159.88,159.85,2.16659891]
[1762420921427,0.69,159.88,159.85,9.1123983]
[1762420921632,20.592,159.89,159.86,2.85659891]
[1762420921805,6.94318651,159.92,159.88,2.16659891]
[1762420922011,0.69,159.92,159.88,2.16659891]
[1762420922318,0.69,159.92,159.89,2.16659891]
[1762420923111,6.2535176,159.91,159.87,2.85659891]
[1762420923511,0.69,159.91,159.87,9.11162079]
[1762420924433,0.69,159.91,159.87,9.11168078]
[1762420925631,20.592,159.93,159.88,2.85659891]
[1762420925834,20.592,159.93,159.91,2.16659891]
[1762420926038,20.592,159.93,159.91,2.85659891]
[1762420926725,20.592,159.96,159.92,2.85659891]
[1762420926928,20.592,159.96,159.93,2.85659891]
[1762420927523,20.592,159.96,159.94,2.16659891]
[1762420927719,0.69,159.98,159.94,2.16659891]
[1762420927917,20.592,159.96,159.94,2.16659891]
[1762420928329,20.592,159.96,159.94,5.63828883]
[1762420928928,20.592,159.95,159.94,11.89038248]
[1762420929135,20.592,159.95,159.94,12.58038248]
[1762420930155,20.592,159.95,159.94,5.63828883]
[1762420930437,20.592,159.95,159.92,11.89136566]
[1762420930634,6.94121118,159.97,159.93,0.69]
[1762420930938,20.592,159.97,159.93,6.32828883]
[1762420931344,20.592,159.95,159.94,0.69]
[1762420931542,0.69,160.01,159.94,6.32828883]
[1762420931734,0.69,160.01,159.98,5.63828883]
[1762420932244,0.69,160.01,159.97,11.88946092]
[1762420932245,20.592,159.99,159.97,11.88946092]
[1762420932718,20.592,160.0,159.96,5.63828883]
[1762420932915,20.592,160.0,159.92,15.63276508]
[1762420932916,6.32828883,159.98,159.93,6.32828883]
[1762420933543,0.69,159.97,159.94,5.63828883]
[1762420934147,0.69,159.97,159.94,11.89047951]
[1762420934557,27.53205639,160.0,159.96,5.63828883]
[1762420934727,20.592,159.98,159.97,5.63828883]
[1762420935047,20.592,159.98,159.96,5.63828883]
[1762420935247,20.592,159.99,159.96,6.32828883]
[1762420935445,20.592,159.98,159.95,5.63828883]
[1762420935636,20.592,159.98,159.96,5.63828883]
[1762420935837,20.592,159.98,159.96,6.32828883]
[1762420936548,0.69,160.01,159.97,0.69]
[1762420936847,21.26067794,160.03,159.97,6.32828883]
[1762420936848,6.24926701,160.02,159.97,6.32828883]
[1762420937245,6.93926701,160.02,159.98,0.69]
[1762420937552,0.69,160.01,159.98,0.69]
[1762420938650,6.93974819,160.01,159.98,0.69]
[1762420939032,6.93974819,160.01,159.96,12.57955526]
[1762420939238,6.93974819,160.01,159.97,0.69]
[1762420939427,11.88803702,160.01,159.96,6.25126643]
[1762420939748,6.32828883,160.0,159.95,6.25185795]
[1762420940046,0.69,160.0,159.95,11.89014678]
[1762420940248,0.69,159.99,159.95,12.58014678]
[1762420940657,6.93974819,160.01,159.96,0.69]
[1762420940851,0.69,160.0,159.96,0.69]
[1762420941249,0.69,160.0,159.95,6.32828883]
[1762420941455,6.32828883,160.0,159.94,5.63828883]
[1762420941659,5.63828883,159.99,159.93,11.89069503]
[1762420941853,5.63828883,159.96,159.91,6.9435176]
[1762420942064,5.63828883,159.99,159.93,5.63828883]
[1762420942236,21.302,159.99,159.94,5.63828883]
[1762420942749,21.302,159.99,159.95,6.92178508]
[1762420942963,21.302,159.99,159.95,12.56007391]
[1762420943154,21.302,159.99,159.96,0.67]
[1762420943669,21.302,159.99,159.95,6.25178508]
[1762420943854,21.302,159.99,159.96,0.67]
[1762420944165,21.302,159.99,159.95,6.25178508]
[1762420944166,21.302,159.99,159.95,6.92178508]
[1762420944365,0.71,159.98,159.95,0.67]
[1762420944570,20.592,159.99,159.95,6.92194416]
[1762420944746,21.302,159.99,159.95,6.92194416]
[1762420945445,21.302,159.99,159.95,27.52011732]
[1762420945650,50.0,160.03,159.96,6.30828883]
[1762420945651,12.5971616,160.03,159.96,6.30828883]
[1762420945965,5.63828883,160.0,159.95,6.25194416]
[1762420946572,0.71,159.99,159.95,6.92194416]
[1762420946743,0.71,159.99,159.96,0.67]
[1762420946939,0.71,159.99,159.96,6.9214175]
[1762420947353,20.592,160.0,159.96,6.9214175]
[1762420947544,21.302,160.0,159.96,12.55970633]
[1762420947962,27.55200139,160.0,159.96,6.9214175]
[1762420948563,21.302,160.0,159.96,6.9214175]
[1762420948771,0.71,160.03,159.98,2.16464913]
[1762420949070,0.71,160.03,159.99,8.41470417]
[1762420949368,27.65010674,160.05,160.0,2.16464913]
[1762420949572,27.65010674,160.05,160.0,2.83464913]
[1762420949761,0.71,160.04,160.0,2.83464913]
[1762420949968,0.71,160.04,160.0,0.67]
[1762420950355,0.71,160.04,160.0,2.83464913]
[1762420950553,20.592,160.03,160.0,2.16464913]
[1762420951172,21.302,160.03,159.99,9.08470417]
[1762420954172,20.592,160.03,160.0,2.83464913]
[1762420954784,20.592,160.04,160.01,0.67]
[1762420954953,20.592,160.03,160.01,0.67]
[1762420955367,21.302,160.03,159.95,6.6]
[1762420955549,21.302,160.03,159.96,6.92156289]
[1762420955550,2.87464913,160.02,159.96,6.92156289]
[1762420955748,2.16464913,160.01,159.96,0.67]
[1762420955948,2.87464913,160.01,159.96,0.67]
[1762420956159,0.71,160.0,159.96,0.67]
[1762420956348,0.71,160.0,159.97,6.25117209]
[1762420956751,6.96000603,160.0,159.96,6.92143764]
[1762420956979,9.12465516,160.0,159.96,6.92143764]
[1762420957157,0.69,159.99,159.96,6.92143764]
[1762420957358,0.69,159.99,159.95,6.25182359]
[1762420957573,2.85464913,159.99,159.95,6.25182359]
[1762420957768,2.85464913,159.99,159.94,8.41692273]
[1762420957973,0.69,159.98,159.94,6.9422736]
[1762420959876,0.69,159.98,159.94,9.10692273]
[1762420960070,0.69,159.98,159.94,6.9422736]
[1762420960269,2.85464913,159.98,159.94,6.8035706]
[1762420960470,2.85464913,159.98,159.92,2.85464913]
[1762420960471,9.1055259,159.98,159.92,2.85464913]
[1762420960674,2.16464913,159.97,159.93,0.69]
[1762420960870,2.85464913,159.98,159.93,0.69]
[1762420961077,0.69,159.97,159.93,0.69]
[1762420962073,6.94117712,159.97,159.92,8.41757111]
[1762420962271,9.10582625,159.97,159.92,6.94292198]
[1762420962470,0.69,159.96,159.92,6.25292198]
[1762420962778,2.85464913,159.96,159.92,6.25306778]
[1762420963270,2.85464913,159.96,159.92,6.94306778]
[1762420963475,0.69,159.96,159.92,6.94306778]
[1762420963662,20.592,159.97,159.92,9.10771691]
[1762420963982,0.69,159.95,159.92,9.10771691]
[1762420964182,0.69,159.96,159.92,9.10771691]
[1762420964585,0.69,159.96,159.93,0.69]
[1762420965283,0.69,159.96,159.93,6.94266316]
[1762420965467,0.69,159.96,159.93,8.41731229]
[1762420965673,27.53362639,159.96,159.92,2.16464913]
[1762420965867,27.53362639,159.96,159.91,2.16464913]
[1762420966198,0.69,159.95,159.91,2.85464913]
[1762420967058,0.69,159.95,159.91,8.41802057]
[1762420967264,9.10662026,159.95,159.9,8.41853661]
[1762420967483,9.10662026,159.95,159.9,6.94388748]
[1762420967696,0.69,159.94,159.9,6.94388748]
[1762420968269,6.94243435,159.94,159.9,6.25388748]
[1762420968486,9.10708348,159.94,159.9,6.25388748]
[1762420968702,2.85464913,159.93,159.88,2.16464913]
[1762420968982,2.85464913,159.93,159.88,2.85464913]
[1762420969181,0.69,159.92,159.88,2.85464913]
[1762420969765,0.69,159.92,159.88,9.10928332]
[1762420969961,0.69,159.92,159.89,0.69]
[1762420970292,0.69,159.92,159.88,9.10928332]
[1762420973897,6.25246972,159.94,159.9,2.16464913]
[1762420974084,21.252,159.94,159.89,2.83464913]
[1762420974283,0.66,159.93,159.89,2.83464913]
[1762420975402,0.66,159.93,159.89,9.08877792]
[1762420978004,0.66,159.93,159.89,6.92412879]
[1762420978173,2.16464913,159.92,159.89,6.92412879]
[1762420978376,3.3856939,159.92,159.89,6.92412879]
[1762420978887,4.0456939,159.92,159.89,6.92412879]
[1762420980508,0.66,159.92,159.89,6.92412879]
[1762420980709,4.0456939,159.92,159.89,6.92412879]
[1762420982303,4.0456939,159.92,159.88,0.67]
[1762420982510,3.3856939,159.91,159.88,0.67]
[1762420983116,3.3856939,159.91,159.88,6.92455484]
[1762420983511,4.0456939,159.92,159.88,6.92455484]
[1762420985300,3.3856939,159.89,159.83,0.2]
[1762420985616,3.3856939,159.87,159.84,0.67]
[1762420986403,3.3856939,159.89,159.84,6.92625625]
[1762420986612,3.3856939,159.89,159.85,0.67]
[1762420986797,4.0456939,159.89,159.85,0.67]
[1762420987510,4.0456939,159.89,159.86,6.25547353]
[1762420988300,0.66,159.89,159.86,6.25547353]
[1762420989123,6.91436941,159.89,159.85,0.67]
[1762420989338,3.3856939,159.87,159.83,0.2]
[1762420989502,9.64087687,159.87,159.83,0.2]
[1762420989694,0.66,159.86,159.83,6.45660402]
[1762420990002,0.66,159.86,159.83,7.12660402]
[1762420990225,0.66,159.86,159.83,0.87]
[1762420990909,3.3856939,159.85,159.83,0.2]
[1762420991435,0.66,159.84,159.83,0.2]
[1762420991818,4.0456939,159.84,159.83,0.2]
[1762420992124,30.89395015,159.84,159.83,0.2]
[1762420994407,40.68277784,159.84,159.83,0.2]
[1762420994621,94.06847174,159.84,159.83,0.2]
[1762420995123,94.85050377,159.84,159.83,0.2]
[1762420997126,113.47281457,159.84,159.83,0.2]
[1762421005335,132.26281457,159.84,159.83,0.2]
[1762421005530,112.69078254,159.84,159.83,0.2]
[1762421005729,218.17281457,159.84,159.83,0.2]
[1762421005930,210.61939474,159.84,159.83,0.2]
[1762421006129,214.00508864,159.84,159.83,0.2]
[1762421008053,100.7,159.89,159.83,0.92]
[1762421008353,4.0856939,159.89,159.84,3.3856939]
[1762421008640,20.592,159.87,159.84,0.72]
[1762421008843,3.3856939,159.88,159.85,0.72]
[1762421009221,20.592,159.87,159.85,0.72]
[1762421010538,9.64011234,159.89,159.85,0.72]
[1762421010539,30.23211234,159.89,159.85,0.72]
[1762421010737,21.292,159.89,159.85,4.1056939]
[1762421010940,24.6776939,159.89,159.86,0.72]
[1762421011143,30.93205064,159.89,159.84,4.1056939]
[1762421011341,30.93205064,159.89,159.85,0.72]
[1762421011845,3.3856939,159.87,159.83,0.92]
[1762421012220,3.3856939,159.87,159.83,0.2]
[1762421012420,3.3856939,159.87,159.84,0.72]
[1762421012642,3.3856939,159.87,159.83,0.2]
[1762421012828,3.3856939,159.84,159.83,0.2]
[1762421013140,30.23395015,159.84,159.83,0.2]
[1762421013336,30.93395015,159.84,159.83,0.2]
[1762421013715,30.23395015,159.84,159.83,0.2]
[1762421014223,30.93395015,159.84,159.83,0.2]
[1762421018320,34.31964405,159.84,159.83,0.2]
[1762421025666,48.27619767,159.84,159.83,0.2]
[1762421026042,44.89050377,159.84,159.83,0.2]
[1762421029962,44.10847174,159.84,159.83,0.2]
[1762421030281,33.61964405,159.84,159.83,0.2]
[1762421030950,30.23395015,159.84,159.83,0.2]
[1762421031861,20.592,159.84,159.83,0.9]
[1762421032160,6.25555568,159.86,159.83,0.9]
[1762421032341,9.64124958,159.86,159.84,0.66]
[1762421033438,3.3856939,159.85,159.83,0.2]
[1762421033638,23.9776939,159.84,159.83,0.2]
[1762421033858,86.96538099,159.84,159.83,0.2]
[1762421034253,93.22163724,159.84,159.83,0.2]
[1762421035242,94.00366927,159.84,159.83,0.2]
[1762421036781,97.38936317,159.84,159.83,0.2]
[1762421038375,101.46991037,159.84,159.83,0.2]
[1762421040388,50.0,159.8,159.79,0.2]
[1762421040567,72.762387,159.8,159.79,0.2]
[1762421041077,81.52938343,159.8,159.79,0.2]
[1762421041278,31.52938343,159.8,159.79,0.2]
[1762421041879,22.762387,159.8,159.79,0.86]
[1762421042078,20.592,159.8,159.79,0.86]
[1762421042981,100.69,159.86,159.79,3.030387]
[1762421043283,2.170387,159.84,159.8,0.66]
[1762421044353,8.42683323,159.84,159.8,0.66]
[1762421044786,2.170387,159.83,159.8,0.66]
[1762421045570,8.42683323,159.84,159.8,0.66]
[1762421046392,2.170387,159.83,159.8,0.66]
[1762421049887,8.42720448,159.83,159.8,0.66]
[1762421051580,2.170387,159.82,159.8,0.66]
[1762421051864,2.170387,159.81,159.79,0.2]
[1762421052063,2.170387,159.81,159.8,0.66]
[1762421052259,2.170387,159.82,159.79,0.86]
[1762421052482,2.170387,159.82,159.79,7.11819537]
[1762421052785,8.42720448,159.83,159.8,0.66]
[1762421053377,2.170387,159.82,159.8,0.66]
[1762421053770,8.42746359,159.82,159.8,0.66]
[1762421054293,2.170387,159.82,159.8,0.66]
[1762421054463,8.42708166,159.83,159.8,0.66]
[1762421054663,2.170387,159.82,159.8,0.66]
[1762421056386,10.93536961,159.84,159.8,6.91773498]
[1762421056684,8.42666755,159.84,159.8,6.91773498]
[1762421056890,8.42666755,159.84,159.81,0.66]
[1762421057571,2.170387,159.83,159.8,0.66]
[1762421057778,2.170387,159.82,159.8,0.66]
[1762421059183,6.25708626,159.82,159.8,0.66]
[1762421059391,8.42747326,159.82,159.8,0.66]
[1762421061389,8.42730153,159.83,159.8,0.66]
[1762421063091,9.13730153,159.83,159.8,0.66]
[1762421063271,8.42730153,159.83,159.8,0.66]
[1762421064377,9.13730153,159.83,159.8,0.66]
[1762421065799,8.42730153,159.83,159.8,0.66]
[1762421066166,9.13730153,159.83,159.8,0.66]
[1762421067874,8.42730153,159.83,159.8,0.66]
[1762421068377,20.592,159.85,159.8,6.91770456]
[1762421068700,8.62854731,159.87,159.81,2.170387]
[1762421068994,20.592,159.85,159.81,2.870387]
[1762421069194,20.592,159.85,159.82,0.7]
[1762421069694,35.27527143,159.87,159.82,9.12738831]
[1762421069998,29.01756687,159.87,159.83,0.7]
[1762421070784,26.84717987,159.87,159.83,2.870387]
[1762421071300,29.01756687,159.87,159.84,0.7]
[1762421072004,29.01756687,159.87,159.82,8.42731619]
[1762421072204,2.880387,159.86,159.82,6.95692919]
[1762421072383,2.880387,159.86,159.83,0.7]
[1762421072583,2.170387,159.84,159.8,6.25782227]
[1762421072792,2.170387,159.84,159.81,0.7]
[1762421073197,2.170387,159.83,159.81,0.7]
[1762421073398,2.170387,159.83,159.8,0.7]
[1762421073793,9.1366832,159.84,159.8,6.9577998]
[1762421074091,2.170387,159.83,159.8,0.7]
[1762421076520,8.42711889,159.83,159.8,0.7]
[1762421077017,2.880387,159.82,159.79,0.2]
[1762421077225,2.170387,159.81,159.79,0.2]
[1762421077383,2.880387,159.81,159.79,0.2]
[1762421078020,33.26121469,159.8,159.79,0.2]
[1762421078191,34.04344247,159.8,159.79,0.2]
[1762421078389,40.30126474,159.8,159.79,0.2]
[1762421079302,40.30126474,159.8,159.79,1e-08]
[1762421081624,42.81106866,159.8,159.79,1e-08]
[1762421082620,42.81106866,159.8,159.76,0.2]
[1762421082621,130.38082769,159.77,159.76,0.2]
[1762421082817,132.55121469,159.77,159.76,0.2]
[1762421083122,133.26121469,159.77,159.76,0.2]
[1762421083290,135.77117609,159.77,159.76,0.2]
[1762421083493,142.03017339,159.77,159.76,0.2]
[1762421084014,144.20056039,159.77,159.76,0.2]
[1762421084395,142.03017339,159.77,159.76,0.2]
[1762421088735,141.32017339,159.77,159.76,0.2]
[1762421089236,142.03017339,159.77,159.76,0.2]
[1762421092607,91.32017339,159.77,159.76,0.2]
[1762421093107,92.02017339,159.77,159.76,0.2]
[1762421095031,91.32017339,159.77,159.76,0.2]
[1762421095417,81.5313457,159.77,159.76,0.2]
[1762421096026,75.2723484,159.77,159.76,0.2]
[1762421096535,81.5313457,159.77,159.76,0.2]
[1762421099934,31.5313457,159.77,159.76,0.2]
[1762421100344,31.28535563,159.82,159.76,0.2]
[1762421100345,56.25696175,159.83,159.76,10.54950852]
[1762421100640,15.68749186,159.85,159.79,3.39011944]
[1762421100820,15.68749186,159.85,159.78,3.39011944]
[1762421100821,9.64637778,159.84,159.78,3.39011944]
[1762421101017,3.39011944,159.82,159.77,0.7]
[1762421102435,9.64740346,159.82,159.77,6.95884668]
[1762421103135,6.25728402,159.82,159.77,6.95884668]
[1762421103337,9.64740346,159.82,159.78,0.7]
[1762421107533,3.39011944,159.82,159.78,6.95857837]
[1762421108023,3.39011944,159.82,159.79,0.7]
[1762421108649,3.39011944,159.82,159.79,6.95786097]
[1762421109036,3.39011944,159.82,159.8,0.7]
[1762421110054,3.39011944,159.84,159.8,0.7]
[1762421110620,3.39011944,159.84,159.8,6.95750205]
[1762421111154,3.39011944,159.83,159.81,0.7]
[1762421111348,3.39011944,159.82,159.81,0.7]
[1762421112348,3.39011944,159.83,159.81,0.7]
[1762421112532,23.98211944,159.85,159.81,0.7]
[1762421112849,3.39011944,159.84,159.81,0.7]
[1762421113631,3.39011944,159.82,159.8,0.7]
[1762421113847,3.39011944,159.82,159.79,6.25808989]
[1762421114026,3.39011944,159.82,159.8,0.7]
[1762421114845,3.39011944,159.83,159.8,0.7]
[1762421115151,3.39011944,159.83,159.8,6.95781622]
[1762421115640,3.39011944,159.83,159.81,0.7]
[1762421116852,3.39011944,159.84,159.81,6.95726205]
[1762421117064,20.592,159.85,159.82,0.7]
[1762421117068,23.98211944,159.85,159.82,0.7]
[1762421118772,23.98211944,159.85,159.82,6.95672403]
[1762421118773,3.39011944,159.85,159.82,6.95672403]
[1762421119067,123.51172597,159.87,159.82,6.95672403]
[1762421119068,3.39011944,159.86,159.82,6.95672403]
[1762421119229,9.64559733,159.86,159.83,0.7]
[1762421119435,9.64520641,159.87,159.83,0.7]
[1762421120936,9.64520641,159.87,159.83,6.95652926]
[1762421121144,9.64520641,159.87,159.84,0.7]
[1762421122249,3.39011944,159.86,159.84,0.7]
[1762421123742,3.39011944,159.87,159.84,0.7]
[1762421124254,18.80936706,159.89,159.84,6.95621914]
[1762421124452,3.39011944,159.9,159.84,10.34633858]
[1762421124765,6.25399753,159.9,159.86,6.25547353]
[1762421124956,9.64411697,159.9,159.86,6.25547353]
[1762421125158,9.64411697,159.9,159.87,0.72]
[1762421125743,3.39011944,159.89,159.87,0.72]
[1762421126859,6.25399753,159.9,159.87,6.97503358]
[1762421126860,3.39011944,159.9,159.87,6.97503358]
[1762421127060,3.39011944,159.91,159.87,6.97503358]
[1762421127261,9.64329679,159.92,159.88,0.72]
[1762421127566,0.1,159.95,159.88,4.11011944]
[1762421127737,0.1,159.95,159.89,4.11011944]
[1762421128068,0.1,159.95,159.9,3.39011944]
[1762421128238,0.1,159.95,159.9,4.11011944]
[1762421128438,0.1,159.95,159.91,0.72]
[1762421128662,0.1,159.95,159.92,6.25312656]
[1762421129053,0.1,159.95,159.93,0.72]
[1762421129250,20.692,159.95,159.93,0.72]
[1762421130364,20.692,159.95,159.93,4.11011944]
[1762421130365,0.1,159.95,159.93,4.11011944]
[1762421130662,0.1,159.95,159.94,9.64246406]
[1762421130837,0.1,159.95,159.94,10.36246406]
[1762421132358,0.1,159.95,159.94,0.72]
[1762421132547,3.49011944,159.95,159.92,0.72]
[1762421133845,3.49011944,159.95,159.92,6.97312038]
[1762421134253,3.49011944,159.95,159.93,0.72]
[1762421134564,0.1,159.95,159.93,0.72]
[1762421135868,0.1,159.95,159.89,15.63512288]
[1762421135869,3.39011944,159.94,159.89,0.72]
[1762421136068,7.02201875,159.95,159.9,0.72]
[1762421136069,3.39011944,159.93,159.9,0.72]
[1762421138169,3.39011944,159.93,159.9,6.97381782]
[1762421138469,3.39011944,159.93,159.9,0.72]
[1762421138671,3.39011944,159.93,159.91,0.66]
[1762421140167,9.64285732,159.93,159.91,0.66]